bitfinex/quotes_ETHUSD_20240707
["timestamp","ask_amount","ask_price","bid_price","bid_amount"]
[1720356497677,2.3795,3012.9,3011.4,2.80636729]
[1720356497852,1.14951775,3012.8,3011.4,0.28063673]
[1720356498172,5.8895,3012.6,3010.8,0.24672]
[1720356498475,2.3795,3012.6,3011.0,2.32473]
[1720356498646,0.15639745,3012.5,3011.3,2.3245]
[1720356498972,0.15639745,3012.5,3011.2,7.12907]
[1720356499187,0.15639745,3012.5,3011.3,3.037467]
[1720356499472,0.15639745,3012.5,3011.4,3.0]
[1720356499679,0.15639745,3012.5,3011.5,0.55]
[1720356499842,0.15639745,3012.5,3011.4,0.55]
[1720356500370,0.15639745,3012.5,3011.5,0.06639434]
[1720356500573,0.15639745,3012.5,3011.6,0.84408843]
[1720356500754,2.3795,3012.6,3011.7,0.06639431]
[1720356501361,2.3795,3012.6,3011.6,0.84408843]
[1720356501568,0.15480618,3012.5,3011.6,0.84408843]
[1720356501781,0.15480618,3012.5,3011.7,0.38440884]
[1720356502081,0.15480618,3012.5,3011.8,0.6163934]
[1720356502235,0.15480618,3012.5,3011.7,0.38440884]
[1720356502666,0.15480618,3012.5,3011.6,0.55]
[1720356502880,0.15480618,3012.5,3011.4,2.87446]
[1720356503092,0.15480618,3012.5,3011.5,3.0]
[1720356503269,0.15480618,3012.5,3011.6,0.61639437]
[1720356504545,0.15480618,3012.5,3011.7,4.80412]
[1720356504745,2.3795,3013.0,3011.9,2.32407]
[1720356504946,0.15424836,3012.4,3012.0,0.61638248]
[1720356505182,2.3795,3013.0,3012.0,3.61638248]
[1720356505583,0.15425968,3012.9,3012.0,3.61638248]
[1720356505757,0.15425968,3012.9,3012.0,3.0]
[1720356506074,2.44588248,3013.0,3012.1,0.72533202]
[1720356506274,0.15426462,3012.8,3012.1,0.72533202]
[1720356506478,0.15427319,3012.9,3012.1,0.72533202]
[1720356506675,0.15425605,3012.7,3012.1,0.72533202]
[1720356506886,0.15426462,3012.8,3012.1,0.72533202]
[1720356507092,0.15424749,3012.6,3012.2,0.3725332]
[1720356507292,0.15425605,3012.7,3012.2,0.3725332]
[1720356507493,0.15423892,3012.5,3012.1,0.06638277]
[1720356507795,0.15431834,3012.4,3011.9,0.06639116]
[1720356508166,2.3795,3013.0,3011.9,0.06639116]
[1720356508371,0.15430693,3012.3,3011.9,0.06639116]
[1720356508562,2.3795,3013.0,3011.9,0.06639116]
[1720356508762,0.15426998,3012.2,3011.6,0.06638518]
[1720356508990,2.44588248,3013.0,3011.7,0.55]
[1720356509195,2.3795,3013.0,3011.8,0.06638521]
[1720356509490,0.15432997,3012.9,3011.9,0.55]
[1720356509695,0.15432997,3012.9,3012.0,0.06638528]
[1720356509898,0.15432997,3012.9,3012.0,3.06638528]
[1720356510193,0.15432997,3012.9,3012.0,0.36163853]
[1720356510560,0.15432997,3012.9,3011.7,3.0]
[1720356510561,0.06638248,3012.8,3011.7,3.0]
[1720356510768,0.06638248,3012.8,3011.6,0.54005852]
[1720356510976,0.15438093,3012.7,3011.6,0.54005852]
[1720356511690,2.3536,3012.5,3011.6,0.54005852]
[1720356511901,2.3536,3012.5,3011.4,2.32449]
[1720356512073,0.15437774,3012.4,3011.5,0.55]
[1720356512283,0.15437774,3012.4,3011.6,3.60219618]
[1720356512670,0.15437774,3012.4,3011.7,3.0]
[1720356513154,0.22076022,3012.4,3011.7,3.0]
[1720356513392,0.47819624,3012.4,3011.7,3.0]
[1720356513975,0.41181376,3012.4,3011.7,3.0]
[1720356514188,0.15437774,3012.4,3011.7,3.0]
[1720356521426,0.22076022,3012.4,3011.7,3.0]
[1720356523307,2.3744,3012.3,3011.7,3.0]
[1720356523476,0.06638248,3012.2,3011.7,3.0]
[1720356523685,0.24407825,3012.1,3011.7,3.0]
[1720356524001,0.15354205,3012.0,3011.7,3.0]
[1720356524476,0.21992453,3012.0,3011.7,3.0]
[1720356525675,2.3744,3011.9,3011.7,3.0]
[1720356525879,2.44078248,3011.9,3011.6,3.60219618]
[1720356526099,2.3744,3011.7,3011.6,3.60219618]
[1720356526281,2.44078248,3011.7,3011.6,3.60219618]
[1720356526481,2.59419616,3011.7,3011.6,3.60219618]
[1720356528887,6.10419616,3011.7,3011.6,3.60219618]
[1720356529112,13.00390654,3011.7,3011.6,3.60219618]
[1720356529414,10.67964654,3011.7,3011.6,3.60219618]
[1720356529614,7.16964654,3011.7,3011.6,3.60219618]
[1720356530003,10.67964654,3011.7,3011.6,3.60219618]
[1720356530383,9.52965702,3011.7,3011.6,3.60219618]
[1720356531787,3.69539702,3011.7,3011.6,3.60219618]
[1720356531987,2.59419616,3011.7,3011.6,3.60219618]
[1720356532188,2.52781368,3011.7,3011.6,3.60219618]
[1720356538186,0.15341368,3011.7,3011.6,3.60219618]
[1720356538382,2.53158248,3012.0,3011.6,3.60219618]
[1720356538581,0.15233214,3011.7,3011.6,3.60219618]
[1720356538889,2.53158248,3012.0,3011.6,3.60219618]
[1720356539092,0.15233214,3011.7,3011.6,3.60219618]
[1720356539290,0.25315825,3011.9,3011.6,3.60219618]
[1720356539509,0.15233214,3011.7,3011.6,3.60219618]
[1720356539711,0.25315825,3011.9,3011.6,3.60219618]
[1720356539903,0.15233214,3011.7,3011.6,3.60219618]
[1720356540101,0.25315825,3011.9,3011.6,3.60219618]
[1720356540102,0.25315825,3011.9,3011.6,3.80219618]
[1720356540421,0.06638248,3011.8,3011.6,3.80219618]
[1720356540605,0.21822438,3011.8,3011.6,3.80219618]
[1720356541288,0.51188264,3011.8,3011.6,3.80219618]
[1720356542417,0.1518419,3011.8,3011.6,3.80219618]
[1720356542607,2.53158248,3012.0,3011.6,3.80219618]
[1720356542808,0.15184186,3011.7,3011.6,3.80219618]
[1720356543000,2.53158248,3012.0,3011.6,3.80219618]
[1720356543217,0.1518504,3011.7,3011.6,3.80219618]
[1720356543534,2.53158248,3012.0,3011.6,3.80219618]
[1720356543687,0.1518504,3011.7,3011.6,3.80219618]
[1720356543887,2.53158248,3012.0,3011.6,3.80219618]
[1720356544222,2.53158248,3012.0,3011.6,4.00219618]
[1720356544523,0.15187889,3011.9,3011.6,4.00219618]
[1720356544821,0.06638248,3011.8,3011.6,4.00219618]
[1720356545042,0.21825849,3011.8,3011.6,4.00219618]
[1720356545390,0.15187601,3011.8,3011.6,4.00219618]
[1720356545590,2.53158248,3012.0,3011.6,4.00219618]
[1720356545836,0.15151288,3011.7,3011.6,4.00219618]
[1720356546035,2.53158248,3012.0,3011.6,4.00219618]
[1720356546276,0.15151288,3011.7,3011.6,4.00219618]
[1720356546399,2.53158248,3012.0,3011.6,4.00219618]
[1720356546587,0.15151288,3011.7,3011.6,4.00219618]
[1720356546812,2.53158248,3012.0,3011.6,4.00219618]
[1720356547013,0.15151288,3011.7,3011.6,4.00219618]
[1720356547204,0.06638248,3011.7,3011.6,4.00219618]
[1720356547404,0.21790958,3011.7,3011.6,4.00219618]
[1720356548322,0.21790958,3011.7,3011.6,4.20219618]
[1720356549329,0.38390958,3011.7,3011.6,4.20219618]
[1720356550329,0.3175271,3011.7,3011.6,4.20219618]
[1720356552428,0.3175271,3011.7,3011.6,4.40219618]
[1720356555901,2.7827271,3011.7,3011.6,4.40219618]
[1720356556199,3.06099981,3011.7,3011.6,4.40219618]
[1720356556426,3.06099981,3011.7,3011.6,4.60219618]
[1720356556668,0.3175271,3011.7,3011.6,4.60219618]
[1720356558741,6.23337662,3011.7,3011.6,4.60219618]
[1720356559053,12.1340191,3011.7,3011.6,4.02713965]
[1720356559376,12.13421808,3011.7,3011.6,4.02713965]
[1720356559526,13.34763989,3011.7,3011.6,4.02713965]
[1720356560533,2.4417,3011.2,3009.9,2.3195]
[1720356560738,1.21650919,3011.1,3009.9,2.3195]
[1720356560961,1.15017779,3011.0,3009.9,2.3195]
[1720356561260,1.36724043,3010.9,3009.9,2.3195]
[1720356561561,0.21706264,3010.9,3010.0,0.23195]
[1720356561931,0.21706264,3010.9,3010.0,3.23195]
[1720356563757,0.21706264,3010.9,3010.1,0.06643867]
[1720356564074,0.15068016,3010.9,3010.1,0.06643867]
[1720356564222,0.06638248,3011.1,3010.1,0.06643867]
[1720356564421,0.06638248,3011.1,3010.2,0.32983887]
[1720356564653,0.15033856,3011.0,3010.2,0.32983887]
[1720356565747,0.15033856,3011.0,3010.3,0.06642923]
[1720356565945,0.15033856,3011.0,3010.2,0.32983887]
[1720356566151,0.06638248,3010.9,3010.0,3.23195]
[1720356566522,0.15032141,3010.8,3010.0,3.23195]
[1720356567164,2.4417,3011.2,3010.0,3.23195]
[1720356567664,0.15034225,3011.1,3010.1,0.06643084]
[1720356567959,0.21672473,3011.1,3010.0,3.0]
[1720356568132,0.21672473,3011.1,3009.9,2.3195]
[1720356568629,2.2711,3011.0,3009.6,5.2533]
[1720356568830,2.39132248,3010.9,3009.6,2.2533]
[1720356569140,2.39132248,3010.9,3009.3,8.76165784]
[1720356569141,2.2711,3010.8,3009.3,8.76165784]
[1720356569344,0.54765617,3010.7,3009.4,0.87616578]
[1720356569556,0.69792494,3010.7,3009.4,0.87616578]
[1720356570267,0.69792494,3010.7,3009.4,3.87616578]
[1720356573268,2.2711,3010.6,3009.4,3.87616578]
[1720356573443,0.06638248,3010.5,3009.4,3.87616578]
[1720356573767,0.21651766,3010.5,3009.4,3.87616578]
[1720356573968,0.15013518,3010.5,3009.5,0.61644705]
[1720356574156,0.15013518,3010.5,3009.6,2.2533]
[1720356574470,0.06638248,3010.9,3009.7,0.6164336]
[1720356574471,0.14990111,3010.4,3009.7,0.6164336]
[1720356574638,0.06638248,3010.9,3009.8,0.88599512]
[1720356574965,0.14997935,3010.3,3009.8,0.81956136]
[1720356575140,0.06638248,3010.9,3009.8,0.81956136]
[1720356575342,0.06638248,3010.9,3009.9,0.0664336]
[1720356575548,0.15001737,3010.8,3009.9,0.0664336]
[1720356576655,2.2711,3011.0,3010.0,0.3211675]
[1720356576874,0.15026025,3010.7,3010.1,0.06642942]
[1720356577078,2.2711,3011.0,3010.1,0.06642942]
[1720356577278,0.15026761,3010.6,3010.1,0.06642942]
[1720356577467,2.2711,3011.0,3010.1,0.06642942]
[1720356577668,0.15025903,3010.5,3010.1,0.06642942]
[1720356577869,2.2711,3011.0,3010.1,0.06642942]
[1720356578055,0.15030858,3010.4,3010.1,0.06642942]
[1720356578374,2.2711,3011.0,3010.1,0.06642942]
[1720356578575,0.1503,3010.3,3010.1,0.06642942]
[1720356578877,0.15030735,3010.2,3010.1,0.06642942]
[1720356579081,2.2711,3011.0,3010.1,0.06642942]
[1720356579271,0.15033584,3010.2,3010.1,0.06642942]
[1720356579452,2.2711,3011.0,3010.1,0.06642942]
[1720356579652,0.1503199,3010.2,3010.1,0.06642942]
[1720356579874,2.2711,3011.0,3010.1,0.06642942]
[1720356580097,0.1503199,3010.2,3010.1,0.06642942]
[1720356580261,2.2711,3011.0,3010.1,0.06642942]
[1720356580581,0.06638248,3011.2,3010.2,2.2674]
[1720356580883,0.06638248,3011.2,3010.3,0.29980938]
[1720356581268,0.06638248,3011.2,3010.3,3.29980938]
[1720356582020,0.06638248,3011.3,3010.3,3.29980938]
[1720356583078,0.06638248,3011.3,3010.3,3.23338294]
[1720356583277,0.06638248,3011.3,3010.4,0.55007829]
[1720356584278,0.06638248,3011.3,3010.5,0.06642226]
[1720356584677,0.06638248,3011.3,3010.4,0.55007829]
[1720356586513,0.06638248,3011.3,3010.3,3.23338294]
[1720356587891,0.06638248,3011.3,3010.4,0.06642234]
[1720356588782,2.42628248,3011.4,3010.4,0.06642234]
[1720356588978,0.23238248,3011.7,3010.5,2.8174]
[1720356589210,0.166,3011.7,3010.6,3.58731768]
[1720356589375,0.166,3011.7,3010.8,2.2674]
[1720356589583,0.166,3011.7,3010.9,0.06641223]
[1720356589887,0.166,3011.7,3010.8,2.2674]
[1720356590290,0.23238248,3011.7,3010.8,2.2674]
[1720356590503,0.23238248,3011.7,3010.9,0.759242]
[1720356590707,0.23238248,3011.7,3010.9,3.759242]
[1720356591334,0.166,3011.7,3011.0,0.06641063]
[1720356591509,0.15064941,3011.6,3011.0,0.06641063]
[1720356593827,0.15064941,3011.6,3011.1,4.59208]
[1720356593996,0.15064941,3011.6,3011.3,2.2674]
[1720356594199,0.15064941,3011.6,3011.4,0.06640073]
[1720356594514,0.166,3011.7,3011.4,0.06640073]
[1720356594903,0.166,3011.7,3011.5,2.2674]
[1720356595107,0.166,3011.7,3011.6,0.06639865]
[1720356595432,0.166,3011.7,3011.6,0.59977852]
[1720356595726,0.166,3011.7,3011.6,5.92411852]
[1720356595727,0.02348866,3011.7,3011.6,5.92411852]
[1720356595927,2.5761,3012.5,3011.7,2.32426]
[1720356596129,0.15087536,3012.4,3011.8,0.06639086]
[1720356596330,2.3599,3012.8,3011.9,0.53906509]
[1720356596627,0.15107187,3012.7,3012.0,0.06639084]
[1720356596920,0.15107187,3012.7,3012.1,2.4523]
[1720356597126,0.06638248,3013.0,3012.2,0.06638736]
[1720356597332,0.15107999,3012.9,3012.2,0.06638736]
[1720356597534,0.15107999,3012.9,3012.2,3.06638736]
[1720356597692,0.15107999,3012.9,3012.2,3.9182561]
[1720356597893,0.15107999,3012.9,3012.3,0.06638736]
[1720356599702,0.15107999,3012.9,3012.2,3.85186874]
[1720356601230,0.06638248,3012.8,3012.2,3.0]
[1720356601435,0.06638248,3012.8,3011.7,3.0]
[1720356601617,0.15117041,3012.7,3011.7,5.32422]
[1720356601918,0.06638248,3013.2,3011.7,5.32422]
[1720356602139,0.15117085,3012.6,3011.7,5.32422]
[1720356602331,0.06638248,3013.2,3011.8,1.065078]
[1720356602530,0.15116228,3012.5,3011.8,1.065078]
[1720356602718,2.5761,3013.1,3011.8,1.065078]
[1720356602923,0.06638248,3013.0,3011.8,1.065078]
[1720356603122,0.2175876,3013.0,3011.9,0.6389298]
[1720356603837,2.3283,3012.9,3011.9,0.6389298]
[1720356604035,5.8293,3012.7,3010.9,2.32483]
[1720356604236,5.8293,3012.7,3010.8,2.4523]
[1720356604237,2.3283,3012.5,3010.8,2.4523]
[1720356604411,0.06638248,3012.4,3010.8,2.4523]
[1720356604733,0.39064049,3012.3,3011.0,2.32479]
[1720356605032,0.06638248,3012.2,3011.0,2.32479]
[1720356605438,0.1510242,3012.1,3011.0,3.0]
[1720356606209,0.1510242,3012.1,3011.1,0.06640545]
[1720356606511,0.1510242,3012.1,3011.0,5.32479]
[1720356606713,0.06638248,3012.2,3011.1,0.8791377]
[1720356606911,2.3283,3012.5,3011.1,3.8791377]
[1720356606912,0.15101563,3012.0,3011.1,3.8791377]
[1720356607110,0.06638248,3012.4,3011.3,2.4523]
[1720356607311,0.15100706,3011.9,3011.3,5.4523]
[1720356607524,0.04876064,3012.4,3011.3,3.0]
[1720356607808,0.04876064,3012.4,3010.5,4.77745]
[1720356607809,2.3283,3012.2,3010.5,4.77745]
[1720356608036,2.3283,3012.0,3010.1,4.77778]
[1720356608213,0.04876064,3011.9,3010.2,2.32541]
[1720356608397,0.1997474,3011.9,3010.2,2.32541]
[1720356608601,0.1997474,3011.9,3010.1,4.77774]
[1720356608827,0.25280474,3011.8,3010.2,2.803124]
[1720356609027,0.04876064,3011.7,3010.2,2.803124]
[1720356609230,0.19978653,3011.7,3010.2,2.803124]
[1720356609640,0.15102589,3011.7,3010.5,2.32513]
[1720356609942,0.04876064,3011.8,3010.5,2.32513]
[1720356610100,0.04876064,3011.8,3010.6,0.532513]
[1720356610307,0.15087785,3011.7,3010.6,3.532513]
[1720356610505,0.04876064,3011.6,3010.6,3.532513]
[1720356610701,0.04876064,3011.6,3010.7,3.0]
[1720356610906,0.15085218,3011.5,3010.6,0.532513]
[1720356611339,2.3283,3011.4,3010.6,0.532513]
[1720356611538,0.15083503,3011.3,3010.6,0.532513]
[1720356611709,0.04876064,3011.2,3010.2,3.477774]
[1720356612036,2.3283,3011.4,3010.3,2.32534]
[1720356612206,2.3283,3011.9,3010.4,2.3252]
[1720356612407,0.15081795,3011.3,3010.6,2.32511]
[1720356612652,2.37706064,3011.9,3010.6,3.0]
[1720356612842,0.23770606,3011.8,3010.7,0.532517]
[1720356613009,0.04876064,3011.7,3010.4,3.0]
[1720356613223,0.04876064,3011.7,3010.5,2.94153458]
[1720356613425,0.15079527,3011.6,3010.6,5.3251]
[1720356613757,0.15079527,3011.6,3010.6,3.55]
[1720356615146,0.15079527,3011.6,3010.6,5.8751]
[1720356615311,0.15079527,3011.6,3010.7,0.8864366]
[1720356615666,0.15079527,3011.6,3010.9,2.4523]
[1720356615868,0.15079527,3011.6,3010.9,7.77713]
[1720356616020,2.3283,3011.9,3010.9,7.77713]
[1720356616440,0.1508542,3011.8,3010.9,7.77713]
[1720356616744,0.1508542,3011.8,3011.0,1.010206]
[1720356616933,0.1508542,3011.8,3011.0,4.010206]
[1720356617576,0.1508542,3011.8,3011.1,0.06640733]
[1720356618541,0.1508542,3011.8,3011.1,2.39112733]
[1720356618729,0.1508542,3011.8,3011.1,5.39112733]
[1720356618925,0.1508542,3011.8,3011.2,0.72511899]
[1720356619131,0.1508542,3011.8,3011.3,0.06640538]
[1720356619762,0.19961484,3011.8,3011.2,3.72511899]
[1720356619961,0.19961484,3011.8,3010.7,3.0]
[1720356620127,0.19961484,3011.8,3010.7,2.32503]
[1720356620333,0.04876064,3011.7,3010.7,3.0]
[1720356620527,0.15091623,3011.6,3010.7,3.0]
[1720356620769,0.04876064,3011.7,3010.8,0.3]
[1720356621062,0.04876064,3011.7,3010.6,3.0]
[1720356621241,0.15093899,3011.6,3010.6,3.0]
[1720356621442,0.04876064,3011.7,3010.5,7.65032]
[1720356621660,0.04876064,3011.7,3010.6,2.32511]
[1720356621967,0.15093899,3011.6,3010.7,0.06641692]
[1720356622127,0.15093899,3011.6,3010.9,2.32488]
[1720356622330,2.3283,3011.9,3011.0,2.39120942]
[1720356622544,0.15035136,3011.8,3011.0,2.39120942]
[1720356622756,0.15035136,3011.8,3011.0,5.39120942]
[1720356623335,0.15035136,3011.8,3011.0,5.3248]
[1720356623535,0.15035136,3011.8,3011.1,3.089688]
[1720356623736,0.15035136,3011.8,3011.2,3.0]
[1720356624265,0.15035136,3011.8,3011.1,3.764968]
[1720356627241,0.04876064,3011.7,3011.0,3.0]
[1720356627442,0.04876064,3011.7,3010.8,0.53915269]
[1720356628472,2.3283,3011.9,3010.8,0.53915269]
[1720356628644,2.3283,3011.9,3010.6,0.33606498]
[1720356628971,2.3283,3011.9,3010.5,3.0]
[1720356628972,0.15042178,3011.8,3010.5,5.32517]
[1720356629176,0.15042178,3011.8,3010.6,2.3251]
[1720356630259,0.15042178,3011.8,3010.5,3.0]
[1720356630465,0.15042178,3011.8,3010.6,0.55]
[1720356630654,0.15042178,3011.8,3010.9,2.32483]
[1720356630849,0.15042178,3011.8,3011.0,0.782483]
[1720356631056,0.15042178,3011.8,3010.8,4.64979]
[1720356631240,0.15042178,3011.8,3010.9,3.55]
[1720356631437,0.04876064,3011.7,3010.9,3.0]
[1720356631642,0.04876064,3011.7,3010.6,3.0]
[1720356631868,0.18474064,3011.6,3010.6,3.0]
[1720356632044,0.18474064,3011.6,3010.7,0.587514]
[1720356632244,0.04876064,3011.7,3010.7,0.587514]
[1720356632644,2.4883,3011.5,3010.7,0.587514]
[1720356633068,0.04876064,3011.4,3010.6,3.0]
[1720356633382,2.67295527,3011.3,3010.2,3.0]
[1720356633578,0.04876064,3011.2,3010.2,3.0]
[1720356633943,0.18461295,3011.1,3010.2,3.0]
[1720356634145,2.53706064,3011.0,3009.7,2.3258]
[1720356634379,2.53706064,3011.0,3009.5,2.3259]
[1720356634380,2.4883,3010.8,3009.5,2.3259]
[1720356634606,0.04876064,3010.7,3009.5,2.3259]
[1720356634782,0.23318504,3010.7,3009.6,2.32586]
[1720356634952,2.4883,3010.8,3009.7,0.465176]
[1720356635304,0.04876064,3010.7,3009.7,2.32578]
[1720356635445,2.4883,3010.8,3009.9,2.32563]
[1720356635891,2.4883,3010.8,3009.8,3.0]
[1720356636055,2.4883,3010.8,3009.9,0.55]
[1720356636571,2.4883,3010.8,3009.9,2.87565]
[1720356636777,2.4883,3010.8,3010.0,3.587565]
[1720356636977,2.4883,3010.8,3010.0,5.913135]
[1720356637644,2.4883,3010.8,3010.1,2.32544]
[1720356637840,2.4883,3010.8,3010.2,0.55]
[1720356638045,2.4488,3011.5,3010.2,3.55]
[1720356638246,0.04876064,3011.4,3010.3,2.912843]
[1720356638446,0.04876064,3011.4,3010.4,0.55]
[1720356638658,0.04876064,3011.4,3010.4,3.55]
[1720356639048,0.18428828,3011.3,3010.4,3.55]
[1720356639566,0.04876064,3011.4,3010.4,3.55]
[1720356639765,0.18428828,3011.3,3010.5,0.9452348]
[1720356640008,0.04876064,3011.4,3010.5,0.8788143]
[1720356640290,0.18397239,3011.3,3010.5,0.8788143]
[1720356641156,2.4488,3011.2,3010.5,0.8788143]
[1720356641352,0.18395752,3011.1,3010.5,0.8788143]
[1720356641549,0.18395752,3011.1,3010.6,0.44288143]
[1720356642484,0.23271816,3011.1,3010.4,3.0]
[1720356642702,0.04876064,3011.1,3010.1,5.32548]
[1720356642885,0.04876064,3011.1,3010.2,0.55]
[1720356643191,2.4488,3011.2,3010.2,0.55]
[1720356643487,2.4488,3011.2,3010.3,0.820092]
[1720356643878,0.18394182,3011.1,3010.3,3.820092]
[1720356644050,2.4488,3011.2,3010.3,3.820092]
[1720356644249,0.18394182,3011.1,3010.3,3.820092]
[1720356644575,2.4488,3011.2,3010.3,3.820092]
[1720356644793,0.18394182,3011.1,3010.4,0.6695502]
[1720356645265,0.04876064,3011.1,3010.4,0.6695502]
[1720356645653,2.4488,3011.0,3010.2,0.55]
[1720356645848,2.4488,3011.0,3010.0,2.87553]
[1720356646048,0.18402377,3010.9,3010.1,3.0]
[1720356646271,2.4488,3011.0,3010.2,0.55]
[1720356646675,2.4488,3011.0,3010.1,0.55]
[1720356646891,2.4488,3011.0,3010.2,0.355]
[1720356648059,2.4488,3011.0,3010.2,3.355]
[1720356649195,2.4488,3011.0,3010.2,5.68042]
[1720356649779,2.4488,3011.0,3010.4,2.32526]
[1720356649969,2.4488,3011.0,3010.5,0.06642154]
[1720356650167,2.4488,3011.0,3010.6,0.53916815]
[1720356650367,2.4488,3011.0,3010.7,0.06642135]
[1720356650691,2.4488,3011.6,3010.6,0.53916815]
[1720356650892,0.18133949,3011.5,3010.6,0.53916815]
[1720356651389,0.23010013,3011.5,3010.6,0.53916815]
[1720356651588,0.23010013,3011.5,3010.7,0.58642882]
[1720356653084,2.49756064,3011.4,3010.7,0.58642882]
[1720356653291,2.49756064,3011.4,3010.3,3.0]
[1720356653591,0.18137586,3011.3,3010.3,3.0]
[1720356654097,2.4488,3011.2,3010.3,3.0]
[1720356654270,2.49756064,3011.2,3010.2,0.68756295]
[1720356654477,2.4488,3011.0,3010.3,0.3687563]
[1720356654796,0.18131764,3010.9,3010.3,0.3687563]
[1720356655460,0.18131764,3010.9,3010.3,3.3687563]
[1720356656895,0.18131764,3010.9,3010.3,0.3687563]
[1720356657300,2.4355,3010.8,3010.1,3.0]
[1720356657535,0.18130276,3010.7,3009.4,2.32596]
[1720356657832,2.4355,3010.5,3009.4,2.32596]
[1720356658169,0.18128901,3010.4,3009.4,2.32596]
[1720356658395,0.18128901,3010.4,3009.5,0.232596]
[1720356658686,0.18128901,3010.4,3009.6,2.32588]
[1720356658866,0.18128901,3010.4,3009.6,5.32588]
[1720356660015,0.18128901,3010.4,3009.6,5.32583]
[1720356660169,0.23004965,3010.4,3009.6,5.32583]
[1720356660372,0.23004965,3010.4,3009.7,0.5558426]
[1720356660571,2.48426064,3010.3,3009.5,3.0]
[1720356660879,2.48426064,3010.3,3009.2,0.33620463]
[1720356660880,0.18126858,3010.2,3009.2,0.33620463]
[1720356661076,0.18126858,3010.2,3009.4,2.32603]
[1720356661481,2.4355,3010.3,3009.4,2.32603]
[1720356661701,2.4355,3010.3,3009.4,4.65203]
[1720356662007,2.4355,3010.9,3009.7,2.32575]
[1720356662171,2.48426064,3010.8,3009.6,5.32581]
[1720356662368,2.61660012,3010.7,3009.7,0.55]
[1720356662601,0.04876064,3010.6,3009.7,0.55]
[1720356662846,2.4355,3010.7,3009.8,0.587581]
[1720356663329,2.4355,3010.5,3009.8,3.587581]
[1720356663522,0.04876064,3010.4,3009.6,3.0]
[1720356663698,2.61636374,3010.3,3009.3,3.0]
[1720356663900,0.04876064,3010.2,3009.2,2.32615]
[1720356664120,2.4355,3010.1,3009.3,0.532615]
[1720356664432,0.22967059,3010.0,3009.3,0.532615]
[1720356664588,0.22967059,3010.0,3008.9,5.32635]
[1720356664791,0.04876064,3010.0,3009.0,2.32634]
[1720356665100,0.04876064,3010.0,3009.1,2.32625]
[1720356665308,2.4355,3010.1,3009.2,2.3926294]
[1720356665506,2.4355,3010.1,3009.5,2.32595]
[1720356665720,2.4355,3010.1,3009.6,0.232595]
[1720356665909,2.4355,3010.1,3009.6,3.232595]
[1720356666245,2.4355,3010.1,3009.7,0.06644182]
[1720356666895,2.4355,3010.1,3009.6,3.232595]
[1720356667124,0.04876064,3010.0,3009.7,3.0]
[1720356667432,0.04876064,3010.0,3009.4,3.0]
[1720356667601,0.04876064,3010.0,3009.1,2.32626]
[1720356667807,0.04876064,3010.0,3009.1,5.32626]
[1720356668110,0.04876064,3010.0,3009.2,1.065255]
[1720356668313,2.4355,3009.9,3009.2,4.065255]
[1720356668513,0.22940154,3009.8,3009.2,3.0]
[1720356668726,0.04876064,3009.8,3008.9,3.0]
[1720356668894,0.04876064,3009.8,3009.0,0.532645]
[1720356671452,2.4355,3009.7,3009.0,0.532645]
[1720356671944,0.18054661,3009.6,3009.0,0.532645]
[1720356673237,0.18054661,3009.6,3009.1,0.06645702]
[1720356673408,0.18054661,3009.6,3009.1,3.06645702]
[1720356673612,2.4355,3009.7,3009.2,0.5925442]
[1720356674740,3.501,3010.6,3009.2,0.5925442]
[1720356674741,2.48426064,3009.6,3009.2,0.5925442]
[1720356675035,2.4355,3009.4,3008.7,5.32658]
[1720356675237,2.4355,3009.4,3008.7,2.32658]
[1720356675449,2.4355,3009.4,3008.8,2.32649]
[1720356675744,2.4355,3009.4,3008.9,2.32641]
[1720356676045,2.4355,3009.4,3008.9,5.32641]
[1720356676247,2.4355,3009.4,3009.0,0.832641]
[1720356676423,2.4355,3009.4,3009.0,3.832641]
[1720356676823,2.3037,3010.2,3009.1,0.06645713]
[1720356677143,2.53295327,3010.1,3009.1,0.06645713]
[1720356677463,2.35246064,3010.1,3009.1,0.06645713]
[1720356677661,2.35246064,3010.1,3009.2,0.62254481]
[1720356677861,2.35246064,3010.1,3009.3,0.06645262]
[1720356678556,0.18044812,3010.0,3009.3,0.06645262]
[1720356679627,0.18044812,3010.0,3009.3,2.39250262]
[1720356679829,0.18044812,3010.0,3009.3,7.71855262]
[1720356680028,0.18044812,3010.0,3009.5,2.32594]
[1720356680226,2.3037,3011.0,3009.6,0.61644078]
[1720356680523,4.39136097,3011.7,3009.6,0.61644078]
[1720356680524,2.3037,3010.8,3009.8,2.32573]
[1720356680727,2.3037,3010.8,3010.1,2.32549]
[1720356681123,2.3037,3010.8,3010.1,4.65093]
[1720356681329,2.3037,3010.8,3010.2,3.765093]
[1720356683464,2.3037,3010.8,3010.2,6.090503]
[1720356684930,2.3037,3010.8,3010.2,3.765093]
[1720356685143,2.3037,3010.8,3010.3,3.0]
[1720356685432,2.3037,3010.8,3010.2,0.765093]
[1720356686386,2.3037,3010.8,3010.3,0.3765093]
[1720356687763,0.04876064,3011.5,3010.3,0.3765093]
[1720356687764,2.4615,3011.1,3010.3,0.3765093]
[1720356687932,2.4615,3011.1,3010.3,5.7018393]
[1720356689261,0.04876064,3011.0,3010.3,3.3765093]
[1720356689430,2.4615,3011.1,3010.3,3.3765093]
[1720356689431,2.4615,3011.1,3010.3,0.3765093]
[1720356689934,2.4615,3011.1,3010.4,0.50272293]
[1720356690490,0.04876064,3011.0,3010.3,3.0]
[1720356690633,0.04876064,3011.0,3010.1,3.0]
[1720356691271,2.4615,3011.1,3010.1,3.0]
[1720356691272,2.4615,3011.1,3010.2,2.39181023]
[1720356691571,2.4615,3011.1,3010.2,4.71719023]
[1720356691764,2.4615,3011.1,3010.3,3.0]
[1720356691944,2.4615,3011.1,3010.4,0.77171902]
[1720356692869,2.4615,3011.1,3010.4,3.09696902]
[1720356693037,2.4615,3011.1,3010.5,3.0]
[1720356693233,2.4615,3011.1,3010.6,0.06642358]
[1720356693700,2.4615,3011.1,3010.5,3.0]
[1720356693899,0.04876064,3011.9,3010.4,0.77171902]
[1720356693900,2.4615,3011.5,3011.0,2.3248]
[1720356694166,2.4615,3011.8,3011.1,2.39111766]
[1720356694369,2.4615,3011.8,3011.1,5.39111766]
[1720356695071,2.4615,3011.8,3011.1,5.32471]